bitfinex/quotes_ETHUSD_20251110
["timestamp","ask_amount","ask_price","bid_price","bid_amount"]
[1762814024229,4.61292938,3556.8,3556.7,14.905504]
[1762814025587,4.60702938,3556.8,3556.7,14.905504]
[1762814026681,6.95274295,3556.8,3556.7,14.905504]
[1762814026883,3.35031738,3556.8,3556.7,14.905504]
[1762814027544,0.08711738,3556.8,3556.7,14.905504]
[1762814028139,0.08711738,3556.8,3556.7,15.389504]
[1762814028967,0.08711738,3556.8,3556.7,15.839904]
[1762814029846,3.68954295,3556.8,3556.7,15.389504]
[1762814030158,7.91625495,3556.8,3556.7,15.839904]
[1762814032290,6.65654295,3556.8,3556.7,15.839904]
[1762814032579,0.08711738,3556.8,3556.7,18.65149901]
[1762814033963,3.05711738,3556.8,3556.7,14.5]
[1762814034164,4.31682938,3556.8,3556.7,14.5]
[1762814034373,4.61002938,3556.8,3556.7,14.5]
[1762814034682,4.61002938,3556.8,3556.7,14.905504]
[1762814035248,4.56002938,3556.8,3556.7,14.5]
[1762814035884,4.56002938,3556.8,3556.7,14.905504]
[1762814037988,4.26682938,3556.8,3556.7,14.905504]
[1762814038286,7.86925495,3556.8,3556.7,14.905504]
[1762814041880,7.86625495,3556.8,3556.7,14.905504]
[1762814042386,7.86925495,3556.8,3556.7,14.905504]
[1762814042989,8.16245495,3556.8,3556.7,0.405504]
[1762814043204,9.68017556,3556.8,3556.7,0.405504]
[1762814043780,8.16245495,3556.8,3556.7,0.405504]
[1762814044004,8.16245495,3556.8,3556.7,14.905504]
[1762814044211,2.967,3556.6,3555.7,3.50205224]
[1762814044395,4.226712,3556.3,3555.7,3.50205224]
[1762814044879,4.226712,3556.3,3555.6,0.4779]
[1762814045096,1.259712,3555.7,3555.4,0.4779]
[1762814045323,1.259712,3555.7,3555.3,0.002]
[1762814045324,3.60242557,3556.0,3555.6,14.9665]
[1762814045681,3.60242557,3556.0,3555.6,0.4665]
[1762814045886,2.967,3555.9,3555.6,0.4665]
[1762814046117,2.967,3555.9,3555.8,14.905504]
[1762814046521,2.97,3555.9,3555.8,14.905504]
[1762814046758,3.0353,3555.9,3555.8,14.905504]
[1762814047268,4.295012,3555.9,3555.8,14.905504]
[1762814048036,4.588212,3555.9,3555.8,14.905504]
[1762814048236,4.295012,3555.9,3555.8,14.5]
[1762814048419,4.588212,3555.9,3555.8,14.5]
[1762814051767,7.89743757,3555.9,3555.8,14.905504]
[1762814051927,4.229712,3555.9,3555.8,14.905504]
[1762814052126,7.82913757,3555.9,3555.8,14.905504]
[1762814052544,7.83563757,3555.9,3555.8,14.905504]
[1762814053464,4.233212,3555.9,3555.8,14.905504]
[1762814055332,4.226712,3555.9,3555.8,14.905504]
[1762814055545,4.230312,3555.9,3555.8,14.905504]
[1762814056233,4.226712,3555.9,3555.8,14.905504]
[1762814056768,54.226712,3555.9,3555.8,14.905504]
[1762814061258,54.414012,3555.9,3555.8,14.905504]
[1762814066879,54.226712,3555.9,3555.8,14.905504]
[1762814068436,54.227712,3555.9,3555.8,14.905504]
[1762814076430,57.83013757,3555.9,3555.8,15.370404]
[1762814076624,57.83013757,3555.9,3555.8,15.824504]
[1762814076926,57.73998958,3555.9,3555.8,15.824504]
[1762814083025,54.77298958,3555.9,3555.8,15.370404]
[1762814083229,54.77298958,3555.9,3555.8,15.824504]
[1762814084365,54.77298958,3555.9,3555.8,18.63681065]
[1762814084539,51.260712,3555.9,3555.8,18.63681065]
[1762814087061,51.260712,3555.9,3555.8,15.824504]
[1762814088578,50.001,3555.9,3555.8,18.63681065]
[1762814090080,53.51327758,3555.9,3555.8,18.63681065]
[1762814090373,53.51327758,3555.9,3555.8,14.905504]
[1762814090545,53.67517758,3555.9,3555.8,14.905504]
[1762814091350,53.51327758,3555.9,3555.8,14.905504]
[1762814101799,57.90188958,3555.9,3555.8,14.905504]
[1762814102106,58.35148958,3555.9,3555.8,14.905504]
[1762814102608,57.96718958,3555.9,3555.8,14.905504]
[1762814102805,57.96718958,3555.9,3555.6,0.002]
[1762814102806,61.09832728,3555.9,3555.6,0.002]
[1762814102978,4.226712,3555.7,3555.6,0.002]
[1762814103184,4.388612,3555.7,3555.6,0.002]
[1762814103516,2.967,3555.5,3555.3,0.002]
[1762814103695,2.967,3555.5,3554.5,0.002]
[1762814103873,4.226712,3555.5,3555.4,14.5]
[1762814104071,4.613212,3555.5,3555.1,0.405504]
[1762814104300,4.613212,3555.2,3555.1,0.405504]
[1762814104467,4.226712,3555.1,3555.0,0.14886646]
[1762814104670,4.775112,3555.1,3555.0,0.14886646]
[1762814105110,8.28738958,3555.1,3555.0,15.05437046]
[1762814105617,8.28738958,3555.1,3555.0,14.905504]
[1762814106372,8.28738958,3555.1,3555.0,0.405504]
[1762814107387,7.73898958,3555.1,3554.5,0.002]
[1762814107571,3.51227758,3554.6,3554.5,0.002]
[1762814107770,4.77198958,3554.6,3554.5,0.002]
[1762814108411,4.77198958,3554.6,3554.5,14.502]
[1762814109410,4.77198958,3554.6,3554.5,14.907504]
[1762814111598,7.90088958,3554.6,3554.5,14.502]
[1762814114001,7.90088958,3554.6,3554.1,0.012]
[1762814114002,8.28518958,3554.6,3554.1,0.012]
[1762814114328,7.90088958,3554.2,3554.1,0.012]
[1762814114889,7.90088958,3554.2,3553.9,0.002]
[1762814115127,2.967,3554.0,3553.9,0.002]
[1762814115292,2.967,3554.0,3553.9,0.904504]
[1762814115495,2.967,3554.0,3553.9,15.389404]
[1762814115703,2.967,3554.0,3553.9,14.907504]
[1762814116125,3.1289,3554.0,3553.9,14.907504]
[1762814117832,2.967,3554.0,3553.9,15.389404]
[1762814118126,2.967,3554.0,3553.9,15.886404]
[1762814118491,2.967,3554.0,3553.9,15.389404]
[1762814119233,2.967,3554.0,3553.9,15.886404]
[1762814120833,2.967,3554.0,3553.9,15.389404]
[1762814121026,2.967,3554.0,3553.9,15.886404]
[1762814122360,3.3535,3554.0,3553.9,14.907504]
[1762814125840,2.967,3554.0,3553.9,14.907504]
[1762814126370,3.1289,3554.0,3553.9,14.907504]
[1762814127274,2.967,3554.0,3553.9,14.907504]
[1762814132619,3.1289,3554.0,3553.9,14.907504]
[1762814138612,2.967,3554.0,3553.9,14.907504]
[1762814139019,6.57325591,3554.0,3553.9,14.907504]
[1762814140084,6.57325591,3554.0,3553.9,15.392204]
[1762814140913,6.57325591,3554.0,3553.9,14.907504]
[1762814164649,6.57325591,3554.0,3553.9,15.392104]
[1762814169643,10.17951182,3554.0,3553.9,15.392104]
[1762814170155,6.57325591,3554.0,3553.9,15.392104]
[1762814170744,6.57325591,3554.0,3553.9,14.907504]
[1762814174756,10.17951182,3554.0,3553.9,14.502]
[1762814174988,6.57325591,3554.0,3553.9,14.502]
[1762814175978,10.72571182,3554.0,3553.9,14.502]
[1762814176888,10.34141182,3554.0,3553.9,14.502]
[1762814185102,11.60112382,3554.0,3553.9,14.502]
[1762814188615,11.43922382,3554.0,3553.9,14.502]
[1762814189916,11.60112382,3554.0,3553.9,14.502]
[1762814190423,11.60112382,3554.0,3553.8,0.002]
[1762814190424,5.917712,3553.9,3553.8,0.002]
[1762814190587,0.1619,3553.6,3553.4,0.002]
[1762814190786,13.29212382,3553.5,3553.4,0.002]
[1762814190998,5.917712,3553.2,3553.1,0.012]
[1762814191285,13.29432382,3553.2,3553.1,0.012]
[1762814191486,13.67642382,3553.2,3553.1,14.512]
[1762814192619,13.67642382,3553.2,3552.1,0.012]
[1762814192856,11.60112382,3553.0,3552.1,0.012]
[1762814193000,2.967,3552.8,3552.1,0.012]
[1762814193317,2.950712,3552.9,3552.1,0.012]
[1762814193318,8.08796791,3552.6,3552.1,0.012]
[1762814193721,8.47226791,3552.6,3552.5,14.502]
[1762814197427,8.08796791,3552.6,3552.5,14.502]
[1762814198537,1.259712,3552.6,3552.5,14.9549]
[1762814198737,1.259712,3552.6,3552.5,15.813504]
[1762814198938,4.86596791,3552.6,3552.5,15.813504]
[1762814199517,3.60625591,3552.6,3552.5,15.813504]
[1762814200930,1.259712,3552.8,3552.6,0.405504]
[1762814201130,1.259712,3552.8,3552.6,0.858604]
[1762814201439,1.259712,3552.8,3552.7,1.311504]
[1762814201642,1.259712,3552.8,3552.7,15.811504]
[1762814202009,1.259712,3553.2,3552.8,0.405504]
[1762814202223,1.259712,3553.2,3552.9,0.4531]
[1762814202507,1.259712,3553.2,3553.1,0.6342]
[1762814202706,1.259712,3553.2,3553.1,15.1342]
[1762814202941,3.51827705,3553.3,3553.2,0.405504]
[1762814203254,4.77798905,3553.3,3553.2,1.311504]
[1762814203428,4.77898905,3553.3,3553.2,1.311504]
[1762814203938,0.001,3553.3,3553.2,1.311504]
[1762814204611,0.001,3553.3,3553.2,15.811504]
[1762814209115,0.001,3553.3,3553.2,18.62586851]
[1762814209317,0.001,3553.3,3553.2,15.811504]
[1762814209535,0.001,3553.7,3553.5,0.405504]
[1762814209730,0.001,3553.7,3553.6,3.67245172]
[1762814210143,0.001,3553.7,3553.6,18.7381962]
[1762814214213,0.001,3554.5,3553.6,18.7381962]
[1762814214214,0.001,3554.5,3554.1,0.405504]
[1762814214417,0.001,3554.5,3554.4,3.85311835]
[1762814214851,0.001,3554.5,3554.4,18.96382731]
[1762814217665,0.001,3555.1,3554.8,3.21860178]
[1762814217969,0.001,3555.1,3554.8,3.68390178]
[1762814218168,0.001,3555.1,3554.8,4.13410178]
[1762814218365,0.001,3555.1,3554.8,18.63410178]
[1762814220575,0.001,3555.1,3554.8,18.74669046]
[1762814221350,0.001,3555.1,3554.8,22.26496751]
[1762814223284,0.001,3555.1,3554.8,23.78496751]
[1762814225288,0.001,3555.1,3554.8,15.52808868]
[1762814225587,0.001,3555.1,3554.8,16.59688868]
[1762814225884,0.001,3555.1,3554.8,17.04708868]
[1762814226080,0.001,3555.1,3554.8,17.45259268]
[1762814226661,0.001,3555.1,3554.8,17.04708868]
[1762814226864,0.001,3555.1,3554.8,17.45259268]
[1762814227282,0.001,3555.1,3554.8,16.53709268]
[1762814228085,0.001,3555.1,3554.8,15.01809268]
[1762814228285,0.6503,3554.9,3554.8,14.61258868]
[1762814228487,0.6503,3554.9,3554.8,14.5]
[1762814229076,0.6503,3554.9,3554.8,14.905504]
[1762814229955,1.910012,3554.9,3554.8,14.5]
[1762814230152,5.42828905,3554.9,3554.8,14.5]
[1762814230374,5.42828905,3554.9,3554.8,14.905504]
[1762814232388,5.97121796,3554.9,3554.8,14.905504]
[1762814233678,5.42828905,3554.9,3554.8,14.905504]
[1762814233880,1.910012,3554.9,3554.8,14.905504]
[1762814234884,1.525712,3554.9,3554.8,14.905504]
[1762814235191,1.270712,3554.9,3554.8,15.370804]
[1762814236092,1.270712,3554.9,3554.8,14.905504]
[1762814236678,1.270712,3554.9,3554.8,15.370804]
[1762814241165,1.270712,3554.9,3554.8,15.821004]
[1762814241768,1.270712,3554.9,3554.8,18.63410178]
[1762814241984,0.011,3554.9,3554.8,18.63410178]
[1762814242405,0.011,3554.9,3554.8,18.74669521]
[1762814249874,0.001,3555.5,3555.2,2.81278127]
[1762814250073,0.001,3555.5,3555.4,0.881504]
[1762814250616,0.001,3555.5,3555.4,15.837104]
[1762814250914,3.51927705,3555.7,3555.5,0.05]
[1762814250915,0.001,3555.7,3555.5,0.05]
[1762814251220,3.52827705,3556.9,3555.8,3.21781065]
[1762814251388,4.78798905,3556.9,3555.8,4.14941065]
[1762814251594,3.52827705,3556.9,3555.8,4.14941065]
[1762814251788,3.52827705,3556.9,3555.8,18.64941065]
[1762814251993,4.78798905,3556.9,3555.8,18.64941065]
[1762814255019,4.78798905,3556.9,3555.8,20.16841065]
[1762814255694,0.001,3556.3,3555.8,20.16841065]
[1762814256433,0.001,3556.3,3555.8,23.6866877]
[1762814256630,0.001,3556.3,3556.2,7.45367137]
[1762814256805,0.001,3556.7,3556.6,3.26717807]
[1762814257007,3.51827705,3558.7,3557.6,0.405504]
[1762814257319,3.51827705,3558.4,3557.8,0.881504]
[1762814257702,1.259712,3558.3,3557.8,1.337104]
[1762814257902,1.259712,3558.3,3557.8,15.837104]
[1762814258309,1.259712,3558.3,3557.8,17.356104]
[1762814259617,0.4356,3558.5,3557.8,17.356104]
[1762814259618,0.1031,3558.9,3557.8,20.16682972]
[1762814259791,0.5387,3558.9,3557.8,20.16682972]
[1762814261206,0.5387,3558.9,3558.8,0.05]
[1762814261207,0.01,3558.9,3558.8,0.05]
[1762814261455,0.01,3558.9,3558.8,1.579004]
[1762814261609,0.01,3558.9,3558.8,4.38893993]
[1762814261933,0.01,3558.9,3558.8,19.00139408]
[1762814262120,0.01,3558.9,3558.8,20.51939408]
[1762814266702,0.01,3558.9,3558.8,15.54395815]
[1762814267035,0.01,3558.9,3558.8,17.06195815]
[1762814267337,0.2264,3558.9,3558.8,16.18045415]
[1762814267537,0.6588,3558.9,3558.8,14.66245415]
[1762814267742,0.6588,3558.9,3558.8,14.61245415]
[1762814268169,0.6588,3558.9,3558.8,15.01795815]
[1762814268358,0.6588,3558.9,3558.8,14.61245415]
[1762814268855,0.6588,3558.9,3558.8,14.5]
[1762814269847,1.918512,3558.9,3558.8,8.5]
[1762814270048,2.55883423,3558.9,3558.8,2.5]
[1762814272943,2.55983423,3558.9,3558.8,2.5]
[1762814273558,7.04454454,3558.9,3558.8,2.5]
[1762814273745,6.40422231,3558.9,3558.8,2.5]
[1762814274262,12.74422231,3558.9,3558.8,2.5]
[1762814280475,12.74422231,3558.9,3557.1,0.1919]
[1762814280476,4.222712,3558.8,3557.1,0.1919]
[1762814280773,4.222712,3558.8,3556.4,0.4942]
[1762814280774,0.5752,3557.2,3556.4,0.4942]
[1762814280956,1.259712,3557.6,3557.1,0.4828]
[1762814281163,1.695312,3557.6,3556.5,0.4942]
[1762814281467,1.695312,3557.6,3557.5,14.5]
[1762814281768,1.808512,3557.6,3557.5,14.5]
[1762814282166,2.45181423,3557.6,3557.5,14.5]
[1762814283268,2.45181423,3557.6,3556.3,0.405504]
[1762814283571,1.259712,3556.8,3556.3,0.405504]
[1762814284072,1.356012,3556.8,3556.3,0.405504]
[1762814284368,1.356012,3556.8,3556.7,14.5]
[1762814284742,1.469212,3556.8,3556.7,14.5]
[1762814285967,7.809212,3556.8,3556.7,14.5]
[1762814286370,7.599712,3556.8,3556.7,14.9828]
[1762814286536,7.712912,3556.8,3556.7,14.5]
[1762814286738,12.63002231,3556.8,3556.7,14.5]
[1762814288738,13.60945424,3556.8,3556.1,0.012]
[1762814288962,5.74872231,3556.2,3556.1,0.012]
[1762814289362,2.963,3556.0,3555.8,0.002]
[1762814289572,1.356812,3555.9,3555.8,0.002]
[1762814289776,2.87232423,3555.9,3555.4,0.002]
[1762814289950,5.76152231,3555.5,3555.4,0.002]
[1762814290481,6.18512231,3555.5,3555.4,0.002]
[1762814292686,6.18512231,3555.5,3555.2,14.5]
[1762814292687,1.259712,3555.4,3555.2,14.5]
[1762814292888,0.0963,3555.3,3554.5,0.002]
[1762814293060,0.0179,3555.2,3554.5,0.002]
[1762814293582,0.46963191,3555.2,3554.5,0.002]
[1762814293777,1.259712,3554.5,3554.2,14.5]
[1762814294170,0.1251,3554.3,3554.2,14.5]
[1762814294558,0.5457,3554.3,3554.2,14.5]
[1762814295420,1.259712,3554.5,3554.2,14.5]
[1762814295561,0.0938,3554.9,3554.4,0.4828]
[1762814296109,0.0938,3555.3,3554.7,14.5]
[1762814296455,0.0938,3555.3,3554.5,0.4942]
[1762814297067,0.0938,3555.3,3555.2,14.5]
[1762814297456,0.2189,3555.3,3555.2,14.5]
[1762814297661,1.259712,3555.6,3555.2,14.5]
[1762814298281,1.259712,3555.6,3555.2,14.9942]
[1762814298481,4.48471031,3555.7,3555.2,14.9942]
[1762814298709,0.0938,3556.0,3555.2,14.5]
[1762814298710,1.259712,3555.6,3555.2,14.5]
[1762814298892,0.5174,3556.0,3555.2,14.5]
[1762814299287,0.5174,3556.0,3555.1,0.1832]
[1762814299817,1.259712,3555.9,3555.8,14.5]
[1762814300113,1.384812,3555.9,3555.8,14.5]
[1762814300614,1.259712,3555.9,3555.8,14.5]
[1762814300814,1.259712,3555.9,3555.8,14.9828]
[1762814301202,0.4206,3556.5,3555.8,14.9828]
[1762814301521,0.4206,3556.5,3555.8,0.4828]
[1762814301884,0.4206,3556.5,3556.4,14.5]
[1762814302513,0.5487,3556.5,3556.4,14.5]
[1762814308492,0.5497,3556.5,3556.4,14.5]
[1762814310689,1.17621223,3556.5,3556.4,14.5]
[1762814313422,2.43592423,3556.5,3556.4,14.5]
[1762814313621,1.259712,3556.4,3555.4,0.4841]
[1762814314024,0.4187,3556.5,3555.4,0.4841]
[1762814314224,0.4187,3556.5,3555.6,14.5]
[1762814314612,0.4187,3556.5,3555.4,0.4841]
[1762814314936,2.963,3556.4,3555.4,0.4841]
[1762814315141,2.963,3556.4,3556.0,14.5]
[1762814315339,0.001,3556.5,3556.0,14.5]
[1762814315724,0.4236,3556.1,3556.0,14.5]
[1762814316240,0.1251,3556.4,3556.0,14.5]
[1762814316634,0.4206,3556.1,3556.0,14.5]
[1762814316838,0.5487,3556.1,3556.0,14.5]
[1762814319122,0.4206,3556.1,3556.0,14.5]
[1762814320803,1.34621223,3556.1,3556.0,14.5]
[1762814321004,1.47431223,3556.1,3556.0,14.5]
[1762814323252,7.38802423,3556.1,3556.0,14.5]
[1762814324506,1.259712,3555.8,3554.8,0.4841]
[1762814324752,4.48471031,3555.7,3554.8,0.4841]
[1762814324952,1.353512,3555.8,3555.4,14.5]
[1762814325250,1.777112,3555.8,3555.4,14.5]
[1762814325458,0.1251,3555.5,3555.4,14.5]
[1762814326553,0.1251,3555.5,3555.4,22.0]
[1762814326710,5.65056553,3555.5,3555.4,22.0]
[1762814327723,5.52546553,3555.5,3555.4,22.4846]
[1762814327954,5.52546553,3555.5,3555.4,22.9687]
[1762814328482,5.52546553,3555.5,3555.4,22.4846]
[1762814330767,5.52546553,3555.5,3555.4,22.9687]
[1762814336698,5.52546553,3555.5,3555.4,22.4846]
[1762814336903,5.52546553,3555.5,3555.4,22.9466]
[1762814338405,5.52546553,3555.5,3555.4,22.0]
[1762814338996,5.52546553,3555.5,3555.4,22.4623]
[1762814339901,5.52546553,3555.5,3555.4,22.9243]
[1762814343480,1.259712,3555.5,3555.4,22.9243]
[1762814344918,1.259712,3555.5,3555.4,22.4623]
[1762814345079,1.259712,3555.5,3555.4,22.9243]
[1762814347803,1.259712,3555.5,3555.4,8.4243]
[1762814348498,1.259712,3555.5,3555.4,22.9243]
[1762814349023,4.773454,3555.5,3555.4,22.9243]
[1762814349838,11.113454,3555.5,3555.4,22.9243]
[1762814357125,11.238554,3555.5,3555.4,22.0]
[1762814358461,11.113454,3555.5,3555.4,22.4623]
[1762814360942,11.113454,3555.5,3555.4,22.9243]
[1762814361745,11.114454,3555.5,3555.4,22.9243]
[1762814364295,12.805454,3555.5,3555.4,22.9243]
[1762814364466,11.114454,3555.5,3555.4,22.9243]
[1762814364863,4.774454,3555.5,3555.4,22.9243]
[1762814372971,0.001,3555.5,3555.4,22.9243]
[1762814373685,0.001,3555.5,3555.4,23.329804]
[1762814374411,0.001,3555.9,3555.4,23.329804]
[1762814374615,0.001,3555.9,3555.8,0.874804]
[1762814375107,0.001,3555.9,3555.8,15.873504]
[1762814377023,0.001,3556.1,3555.9,0.405504]
[1762814377223,0.001,3556.1,3556.0,3.76507396]
[1762814377388,3.514742,3557.5,3556.5,0.405504]
[1762814377590,3.514742,3557.5,3556.9,3.21687697]
[1762814377591,0.001,3557.5,3556.9,3.21687697]
[1762814377825,0.001,3557.5,3557.3,0.405504]
[1762814377995,0.001,3557.5,3557.4,0.4693]
[1762814378205,0.001,3557.5,3557.4,0.968]
[1762814378418,0.001,3557.5,3557.4,1.373504]
[1762814378592,0.001,3557.5,3557.4,15.873504]
[1762814379501,0.001,3557.5,3557.4,23.373504]
[1762814381022,0.001,3557.5,3557.4,26.18454577]
[1762814381217,0.011,3557.9,3557.7,0.405504]
[1762814381431,0.011,3557.9,3557.8,0.874804]
[1762814381813,0.011,3557.9,3557.8,15.873504]
[1762814382014,0.011,3557.9,3557.8,18.68422972]
[1762814382225,6.35,3558.9,3558.3,0.405504]
[1762814382454,0.01,3558.9,3558.8,0.874804]
[1762814382612,0.01,3558.9,3558.8,1.373504]
[1762814382816,0.01,3558.9,3558.8,15.873504]
[1762814385561,0.01,3558.9,3558.8,23.373504]
[1762814395966,4.86472247,3558.9,3558.8,22.0]
[1762814396446,5.39792247,3558.9,3558.8,22.0]
[1762814396654,5.51432247,3558.9,3558.8,22.0]
[1762814397057,5.39792247,3558.9,3558.8,22.0]
[1762814400203,5.51432247,3558.9,3558.8,22.0]
[1762814400417,6.68811472,3558.9,3558.8,7.5]
[1762814400558,8.37911472,3558.9,3558.8,5.74063156]
[1762814400759,6.68811472,3558.9,3558.8,5.74063156]
[1762814401493,6.68811472,3558.9,3558.8,22.0]
[1762814402790,5.51432247,3558.9,3558.8,22.0]
[1762814404372,5.51432247,3558.9,3558.8,7.5]
[1762814405001,5.51432247,3558.9,3558.8,22.0]
[1762814406061,5.51432247,3558.9,3558.8,21.95]
[1762814406379,5.51432247,3558.9,3558.8,22.0]
[1762814410591,11.85432247,3558.9,3558.8,22.0]
[1762814411146,13.39925576,3558.9,3558.8,7.5]
[1762814411343,21.26861673,3558.9,3558.8,5.65274677]
[1762814411684,21.55041673,3558.9,3558.8,5.65274677]
[1762814411889,21.26861673,3558.9,3558.8,5.65274677]
[1762814412106,21.26861673,3558.9,3558.8,0.25123764]
[1762814412507,1.691,3558.6,3558.3,0.002]
[1762814412702,1.259712,3558.3,3557.8,14.5]
[1762814413033,10.14183294,3558.0,3557.5,0.002]
[1762814413190,8.44973294,3557.6,3557.5,0.002]
[1762814413387,1.371812,3557.6,3557.5,0.002]
[1762814413634,4.96682247,3557.6,3557.5,0.002]
[1762814413811,4.85472247,3557.6,3557.5,0.002]
[1762814414539,4.85472247,3557.6,3557.5,0.4822]
[1762814414749,4.85472247,3557.6,3557.5,0.9373]
[1762814415117,4.85472247,3557.6,3557.5,15.4373]
[1762814415307,3.59501047,3557.6,3557.5,15.4373]
[1762814415507,3.59501047,3557.9,3557.5,15.4373]
[1762814415845,3.59501047,3557.9,3557.6,0.4551]
[1762814416030,3.59501047,3557.9,3557.8,0.4802]
[1762814416209,3.59501047,3557.9,3557.8,14.9802]
[1762814416547,3.59501047,3557.9,3557.8,15.4353]
[1762814417535,4.85472247,3557.9,3557.8,15.4353]
[1762814420011,44.85472247,3557.9,3557.8,15.4353]
[1762814420614,41.259712,3557.9,3557.8,15.4353]
[1762814423320,44.85472247,3557.9,3557.8,15.4353]
[1762814424926,41.259712,3557.9,3557.8,14.9802]
[1762814425916,41.945112,3557.9,3557.8,14.5]
[1762814426119,44.6919497,3557.9,3557.8,14.5]
[1762814426434,51.0319497,3557.9,3557.8,14.5]
[1762814426596,48.035312,3557.9,3557.8,14.5]
[1762814426798,51.74352247,3557.9,3557.8,14.5]
[1762814427003,45.40352247,3557.9,3557.8,14.5]
[1762814433050,41.259712,3557.9,3557.8,15.4478]
[1762814433203,44.85472247,3557.9,3557.8,15.4478]
[1762814433430,43.59501047,3557.9,3557.8,15.4478]
[1762814433627,44.85472247,3557.9,3557.8,15.4478]
[1762814437956,51.19472247,3557.9,3557.8,15.4478]
[1762814438880,51.19472247,3557.9,3557.8,14.5]
[1762814439083,51.30792247,3557.9,3557.8,14.5]
[1762814446370,51.19472247,3557.9,3557.8,14.5]
[1762814446567,51.31112247,3557.9,3557.8,14.5]
[1762814446946,51.22466757,3557.9,3557.8,14.5]
[1762814447346,51.10826757,3557.9,3557.8,14.502]
[1762814447556,51.10926757,3557.9,3557.8,14.502]
[1762814449352,51.22566757,3557.9,3557.8,14.502]
[1762814450338,51.10926757,3557.9,3557.8,14.502]
[1762814452478,51.10926757,3557.9,3557.8,14.9782]
[1762814454053,51.22566757,3557.9,3557.8,14.502]
[1762814454251,51.36206757,3557.9,3557.8,14.502]
[1762814454662,51.22566757,3557.9,3557.8,14.502]
[1762814454862,51.10926757,3557.9,3557.8,14.502]
[1762814455058,51.10926757,3557.9,3557.8,14.9527]
[1762814455983,51.10926757,3557.9,3557.8,14.502]
[1762814457082,51.10926757,3557.9,3557.8,14.9527]
[1762814458186,51.10926757,3557.9,3557.8,14.502]
[1762814458187,51.22246757,3557.9,3557.8,14.502]
[1762814458393,51.36206757,3557.9,3557.8,14.502]
[1762814458791,51.22246757,3557.9,3557.8,14.502]
[1762814459093,51.10926757,3557.9,3557.8,14.502]
[1762814459475,51.10926757,3557.9,3557.8,14.9527]
[1762814459705,51.10926757,3557.9,3557.8,15.4154]
[1762814459910,46.341,3557.9,3557.8,15.4154]
[1762814460307,47.600712,3557.9,3557.8,15.4154]
[1762814462916,47.600712,3557.9,3557.8,18.63162972]
[1762814462917,40.001,3557.9,3557.8,18.63162972]
[1762814466603,28.001,3557.9,3557.8,18.63162972]
[1762814472911,28.001,3557.9,3557.8,15.820904]
[1762814473631,28.001,3557.9,3557.8,14.502]
[1762814473799,29.260712,3557.9,3557.8,14.502]
[1762814476752,33.45466757,3557.9,3557.8,14.502]
[1762814476918,36.20150527,3557.9,3557.8,14.502]
[1762814477321,33.45466757,3557.9,3557.8,14.502]
[1762814479858,33.45466757,3557.9,3557.8,0.002]
[1762814480353,33.45466757,3557.9,3557.8,14.502]
[1762814482862,39.79466757,3557.9,3557.8,14.502]
[1762814504937,39.79466757,3557.9,3557.8,0.002]
[1762814506035,42.54150527,3557.9,3557.8,0.002]
[1762814507005,44.32102898,3557.9,3557.8,0.002]
[1762814510246,47.28402898,3557.9,3557.8,0.002]
[1762814510543,44.32102898,3557.9,3557.8,0.002]
[1762814512675,2.948712,3557.7,3557.5,0.002]
[1762814512964,4.86309128,3557.6,3557.5,0.002]
[1762814513163,5.29869128,3557.6,3557.5,0.002]
[1762814513462,6.98769128,3557.6,3557.5,0.002]
[1762814513878,1.368912,3557.5,3556.6,14.5]
[1762814514171,8.57137056,3557.1,3556.6,14.5]
[1762814514777,14.90937056,3557.1,3556.6,14.5]
[1762814518052,15.34177056,3557.1,3556.6,14.5]
[1762814519239,14.90937056,3557.1,3556.6,14.5]
[1762814519455,17.00160762,3557.1,3556.6,14.5]
[1762814520178,2.948712,3557.0,3556.6,14.5]
[1762814520360,5.07009128,3556.7,3556.6,14.5]
[1762814520674,5.07009128,3556.7,3556.1,0.01]
[1762814520675,1.259712,3556.6,3556.1,0.01]
[1762814520878,4.85989128,3556.2,3556.1,0.01]
[1762814521741,4.85989128,3556.2,3556.1,11.31]
[1762814524783,4.85989128,3556.2,3556.1,0.01]
[1762814525254,4.85989128,3556.2,3556.1,11.31]
[1762814525790,11.19989128,3556.2,3556.1,11.31]
[1762814525985,14.79897056,3556.2,3556.1,11.31]
[1762814528963,14.79897056,3556.2,3556.1,0.01]
[1762814529499,14.79897056,3556.2,3556.1,11.31]
[1762814530070,15.23457056,3556.2,3556.1,11.31]
[1762814530267,1.259712,3556.1,3555.1,0.1904]
[1762814530468,8.45787056,3555.2,3555.1,0.01]
[1762814530668,14.79787056,3555.2,3555.1,0.01]
[1762814530864,14.79787056,3555.2,3555.1,11.31]
[1762814531273,11.19879128,3555.2,3555.1,11.31]
[1762814531477,14.79787056,3555.2,3555.1,11.31]
[1762814532294,8.45787056,3555.2,3555.1,11.31]
[1762814533881,8.45787056,3555.2,3555.1,0.01]
[1762814534077,9.58575762,3555.2,3555.1,0.01]
[1762814534272,10.01815762,3555.2,3555.1,11.31]
[1762814537429,10.01815762,3555.2,3555.1,0.01]
[1762814537631,9.58575762,3555.2,3555.1,0.01]
[1762814538021,9.58575762,3555.2,3555.1,11.31]
[1762814539419,10.01815762,3555.2,3555.1,11.31]
[1762814539818,2.948712,3555.1,3554.5,0.002]
[1762814540020,1.259712,3554.6,3554.5,0.002]